bitfinex/quotes_SOLUSD_20260310
["timestamp","ask_amount","ask_price","bid_price","bid_amount"]
[1773151880821,11.71522627,85.359,85.29,0.1]
[1773151880822,3.69383402,85.356,85.29,0.1]
[1773151881022,11.25965588,85.31,85.295,11.99214707]
[1773151881222,11.25965588,85.32,85.295,11.99214707]
[1773151881426,11.25965588,85.31,85.295,0.268177]
[1773151881625,3.69383402,85.352,85.295,11.99218371]
[1773151881931,3.69383402,85.352,85.29,0.1]
[1773151881932,11.25965588,85.31,85.29,0.1]
[1773151882128,11.25965588,85.3,85.274,10.85680436]
[1773151882430,11.25965588,85.29,85.274,10.85680436]
[1773151882637,3.69383402,85.336,85.274,10.85680436]
[1773151882638,2.26956981,85.304,85.274,10.85680436]
[1773151882835,3.69383402,85.336,85.274,10.85680436]
[1773151882836,11.25965588,85.29,85.274,10.85680436]
[1773151883431,11.25965588,85.31,85.276,2.34120098]
[1773151883629,11.72209262,85.309,85.276,2.34120098]
[1773151883831,2.26956981,85.329,85.276,2.34120098]
[1773151884020,11.25965588,85.32,85.291,2.34120098]
[1773151884206,2.26956981,85.364,85.291,2.34120098]
[1773151884516,2.26956981,85.364,85.275,87.95074757]
[1773151884517,11.25965588,85.36,85.321,2.34120098]
[1773151884715,11.25965588,85.35,85.321,2.34120098]
[1773151884911,11.25965588,85.36,85.321,2.34120098]
[1773151885120,11.25965588,85.36,85.279,1.17262163]
[1773151885121,11.25965588,85.35,85.332,2.34120098]
[1773151885507,11.25965588,85.36,85.332,2.34120098]
[1773151886010,11.25965588,85.35,85.331,11.71907044]
[1773151886328,11.25965588,85.36,85.332,2.34120098]
[1773151886528,2.26956981,85.376,85.332,2.34120098]
[1773151886736,11.25965588,85.37,85.341,2.34120098]
[1773151887030,11.25965588,85.36,85.331,11.71907044]
[1773151887527,11.25965588,85.38,85.341,2.34120098]
[1773151887728,11.25965588,85.38,85.351,2.34120098]
[1773151888027,11.25965588,85.37,85.351,2.34120098]
[1773151888228,11.25965588,85.37,85.34,2.34120098]
[1773151888616,2.26956981,85.383,85.34,13.60085686]
[1773151888822,11.25965588,85.37,85.34,13.60085686]
[1773151889014,11.25965588,85.37,85.341,41.01194032]
[1773151889324,11.25965588,85.37,85.341,43.3531413]
[1773151890145,11.25965588,85.37,85.341,41.01194032]
[1773151890330,11.25965588,85.37,85.239,11.71283777]
[1773151890331,2.26956981,85.349,85.282,2.34120098]
[1773151890531,2.26956981,85.322,85.282,2.34120098]
[1773151890722,11.25965588,85.3,85.282,2.34120098]
[1773151890912,11.25965588,85.31,85.275,41.0436822]
[1773151891114,2.26956981,85.325,85.275,11.72676634]
[1773151891316,11.25965588,85.32,85.281,2.34120098]
[1773151891549,11.25965588,85.32,85.243,46.92452325]
[1773151891550,11.25965588,85.29,85.255,2.34120098]
[1773151891831,2.26956981,85.309,85.271,2.34120098]
[1773151892010,11.25965588,85.3,85.271,2.34120098]
[1773151892214,3.69383402,85.338,85.257,2.34120098]
[1773151892215,11.25965588,85.29,85.257,2.34120098]
[1773151892609,2.26956981,85.289,85.256,11.72937975]
[1773151892828,3.69383402,85.338,85.26,11.25965588]
[1773151892829,2.26956981,85.299,85.26,11.25965588]
[1773151893014,2.26956981,85.299,85.243,46.92414978]
[1773151893015,2.26956981,85.31,85.271,11.72731643]
[1773151893219,11.25965588,85.3,85.271,14.06851741]
[1773151893440,11.25965588,85.3,85.272,2.34120098]
[1773151893611,11.25965588,85.3,85.259,2.39730395]
[1773151893612,2.39639973,85.299,85.259,2.39730395]
[1773151893818,2.39639973,85.309,85.207,2.39730395]
[1773151894017,11.25965588,85.29,85.251,2.39730395]
[1773151894933,2.39639973,85.309,85.261,2.39730395]
[1773151894934,11.25965588,85.3,85.261,2.39730395]
[1773151895134,11.25965588,85.29,85.263,2.39730395]
[1773151895631,11.25965588,85.29,85.262,41.04994017]
[1773151895632,2.39639973,85.309,85.271,2.39730395]
[1773151895832,11.25965588,85.3,85.271,2.39730395]
[1773151896034,2.39639973,85.322,85.271,2.39730395]
[1773151896227,11.25965588,85.31,85.271,2.39730395]
[1773151896426,2.39639973,85.316,85.262,14.12585828]
[1773151896616,11.25965588,85.31,85.271,2.39730395]
[1773151897019,41.01626587,85.332,85.262,41.04994017]
[1773151897020,2.39639973,85.305,85.262,41.04994017]
[1773151897337,2.39639973,85.33,85.271,2.39730395]
[1773151897517,11.25965588,85.32,85.281,2.39730395]
[1773151898217,11.25965588,85.33,85.291,2.39730395]
[1773151898418,11.25965588,85.34,85.3,11.25965588]
[1773151898634,11.25965588,85.34,85.301,2.39730395]
[1773151898841,11.25965588,85.35,85.311,2.39730395]
[1773151899338,11.25965588,85.35,85.313,2.39730395]
[1773151899521,2.39639973,85.354,85.32,11.25965588]
[1773151899720,11.25965588,85.36,85.321,2.39730395]
[1773151900317,2.39639973,85.349,85.312,41.02588147]
[1773151900636,11.25965588,85.34,85.312,41.02588147]
[1773151900842,2.39639973,85.349,85.312,41.02588147]
[1773151901233,11.71440285,85.365,85.312,41.02588147]
[1773151901234,2.39639973,85.339,85.312,11.72168042]
[1773151901541,13.65605561,85.32,85.289,11.72484142]
[1773151901748,11.25965588,85.33,85.297,2.39730395]
[1773151901926,3.69383402,85.373,85.301,2.39730395]
[1773151902238,11.25965588,85.34,85.301,2.39730395]
[1773151902432,40.99512743,85.376,85.311,2.39730395]
[1773151902433,11.25965588,85.35,85.311,2.39730395]
[1773151902743,11.25965588,85.36,85.32,11.25965588]
[1773151902928,11.25965588,85.36,85.321,2.39730395]
[1773151903436,11.25965588,85.35,85.311,41.02636235]
[1773151903641,11.25965588,85.36,85.321,2.39730395]
[1773151905021,2.39639973,85.359,85.321,2.39730395]
[1773151905223,11.25965588,85.35,85.312,2.39730395]
[1773151905444,11.71520629,85.36,85.321,2.39730395]
[1773151905445,11.25965588,85.36,85.321,2.39730395]
[1773151905625,11.25965588,85.37,85.33,11.25965588]
[1773151905943,2.39639973,85.369,85.331,2.39730395]
[1773151906322,11.25965588,85.36,85.331,2.39730395]
[1773151906522,2.57060826,85.359,85.318,2.55799387]
[1773151906722,11.25965588,85.36,85.321,2.55799387]
[1773151906932,11.25965588,85.37,85.331,2.55799387]
[1773151907639,11.25965588,85.37,85.305,46.89020066]
[1773151907640,11.25965588,85.36,85.333,2.55799387]
[1773151907841,11.25965588,85.37,85.333,2.55799387]
[1773151908043,40.98408645,85.399,85.341,2.55799387]
[1773151908044,11.25965588,85.38,85.341,2.55799387]
[1773151908252,11.25965588,85.37,85.333,2.55799387]
[1773151908545,40.98408645,85.399,85.341,2.55799387]
[1773151908725,40.98408645,85.399,85.332,99.61093141]
[1773151908726,11.25965588,85.39,85.351,2.55799387]
[1773151909526,2.57060826,85.397,85.36,11.25965588]
[1773151909739,11.71015035,85.396,85.361,11.71495179]
[1773151909945,11.71015035,85.396,85.361,14.27294566]
[1773151910143,11.71015035,85.396,85.362,2.55799387]
[1773151910327,23.16928754,85.4,85.362,2.55799387]
[1773151910522,11.90963166,85.4,85.37,11.25965588]
[1773151910722,11.90963166,85.4,85.362,2.55799387]
[1773151910943,11.90963166,85.4,85.361,41.00233127]
[1773151910944,2.57060826,85.399,85.361,41.00233127]
[1773151911155,23.16928754,85.4,85.371,2.55799387]
[1773151911156,0.2,85.4,85.371,2.55799387]
[1773151911648,2.57060826,85.399,85.361,29.28737948]
[1773151911828,2.57060826,85.399,85.362,41.00185093]
[1773151912032,2.57060826,85.399,85.37,11.29073107]
[1773151912224,2.57060826,85.399,85.364,2.55799387]
[1773151912522,14.28034724,85.399,85.364,2.55799387]
[1773151913049,0.2,85.4,85.37,11.29073107]
[1773151913226,11.29073107,85.42,85.381,2.55799387]
[1773151913621,11.70660094,85.422,85.381,2.55799387]
[1773151913846,11.70576391,85.428,85.383,2.55799387]
[1773151914046,11.29073107,85.42,85.383,2.55799387]
[1773151914427,40.9701737,85.428,85.322,117.20306602]
[1773151914428,11.29073107,85.39,85.322,117.20306602]
[1773151914628,87.79322937,85.428,85.322,117.20306602]
[1773151914629,2.57060826,85.402,85.37,11.29073107]
[1773151914846,2.57060826,85.409,85.371,2.55799387]
[1773151915165,11.29073107,85.4,85.371,2.55799387]
[1773151915539,2.57060826,85.409,85.371,2.55799387]
[1773151915739,2.57060826,85.409,85.322,87.90229951]
[1773151915740,11.70713432,85.418,85.382,40.99224659]
[1773151915944,11.70713432,85.418,85.354,46.86342834]
[1773151915945,13.86133933,85.4,85.371,11.71357955]
[1773151916245,2.57060826,85.4,85.371,40.99752843]
[1773151916841,13.86133933,85.4,85.371,40.99752843]
[1773151917042,2.57060826,85.4,85.371,40.99752843]
[1773151917535,2.57060826,85.409,85.371,43.5555223]
[1773151917743,11.29073107,85.4,85.371,43.5555223]
[1773151918164,2.57060826,85.407,85.372,2.55799387]
[1773151918638,2.57060826,85.407,85.371,40.99752843]
[1773151918639,2.57060826,85.399,85.371,11.71357955]
[1773151919235,2.57060826,85.399,85.371,40.99752843]
[1773151919744,2.57060826,85.399,85.366,2.55799387]
[1773151919946,2.57060826,85.397,85.367,11.71412841]
[1773151920163,2.57060826,85.389,85.353,11.71604981]
[1773151920368,11.29073107,85.39,85.353,11.71604981]
[1773151920369,11.70852441,85.408,85.371,2.55799387]
[1773151920661,2.57060826,85.409,85.371,2.55799387]
[1773151920878,2.57060826,85.409,85.353,41.00617435]
[1773151920879,11.29073107,85.39,85.354,2.55799387]
[1773151921160,2.57060826,85.399,85.361,2.55799387]
[1773151922142,46.82138243,85.432,85.342,11.71755993]
[1773151922143,2.57060826,85.379,85.342,11.71755993]
[1773151922551,2.57060826,85.369,85.33,11.29073107]
[1773151922751,2.57060826,85.359,85.321,2.55799387]
[1773151922951,2.57060826,85.359,85.33,11.29073107]
[1773151923152,40.98456637,85.398,85.341,2.55799387]
[1773151923153,11.29073107,85.38,85.341,2.55799387]
[1773151923366,2.57060826,85.379,85.341,2.55799387]
[1773151924269,2.45775558,85.377,85.341,2.55799387]
[1773151924450,2.45775558,85.369,85.332,2.60945866]
[1773151924647,2.45775558,85.359,85.323,11.72005641]
[1773151924865,2.45775558,85.377,85.34,13.90018973]
[1773151925048,2.45775558,85.377,85.341,2.60945866]
[1773151925367,14.16918021,85.387,85.351,2.60945866]
[1773151925568,2.45775558,85.4,85.361,2.60945866]
[1773151925756,52.72,85.451,85.381,2.60945866]
[1773151925757,11.29073107,85.42,85.381,2.60945866]
[1773151925955,11.29073107,85.42,85.38,11.29073107]
[1773151925956,2.45775558,85.424,85.391,2.60945866]
[1773151926166,2.45775558,85.419,85.381,11.71220763]
[1773151926362,2.45775558,85.419,85.39,11.29073107]
[1773151926685,11.29073107,85.44,85.41,11.29073107]
[1773151926974,2.45775558,85.499,85.421,2.60945866]
[1773151927171,2.45775558,85.469,85.43,13.90018973]
[1773151927373,11.29073107,85.47,85.431,2.60945866]
[1773151927576,11.29073107,85.47,85.441,2.60945866]
[1773151927875,2.45775558,85.469,85.43,11.29073107]
[1773151928049,2.45775558,85.469,85.431,2.60945866]
[1773151928246,11.29073107,85.48,85.441,2.60945866]
[1773151928774,2.45775558,85.479,85.44,11.29073107]
[1773151929265,40.93663008,85.498,85.451,2.60945866]
[1773151929266,11.29073107,85.49,85.451,2.60945866]
[1773151929468,0.2,85.5,85.47,11.29073107]
[1773151929671,11.69604322,85.499,85.461,2.60945866]
[1773151929869,11.49073107,85.5,85.461,2.60945866]
[1773151930172,11.49073107,85.5,85.45,13.90018973]
[1773151930173,11.29073107,85.49,85.45,13.90018973]
[1773151930349,2.45775558,85.498,85.432,40.96825545]
[1773151930350,2.45775558,85.498,85.47,11.29073107]
[1773151930548,0.2,85.5,85.47,11.29073107]
[1773151930754,0.2,85.52,85.481,2.60945866]
[1773151930953,11.69330791,85.519,85.481,2.60945866]
[1773151931153,11.49073107,85.52,85.481,2.60945866]
[1773151931365,11.49073107,85.52,85.451,146.2826649]
[1773151931366,11.49073107,85.52,85.471,2.60945866]
[1773151931558,2.45775558,85.499,85.452,2.60945866]
[1773151931766,2.45775558,85.499,85.47,11.29073107]
[1773151931980,2.45775558,85.499,85.461,2.60945866]
[1773151932156,40.9265777,85.519,85.451,40.95914617]
[1773151932157,2.45775558,85.519,85.453,2.60945866]
[1773151932354,11.29073107,85.48,85.454,11.70220235]
[1773151932559,11.29073107,85.47,85.432,2.60945866]
[1773151932754,11.29073107,85.46,85.433,11.70507883]
[1773151933068,11.69659044,85.495,85.433,11.70507883]
[1773151933372,11.69659044,85.495,85.451,2.64931815]
[1773151933373,11.29073107,85.48,85.451,2.64931815]
[1773151933560,11.29073107,85.48,85.433,40.96777591]
[1773151933561,11.29073107,85.5,85.46,11.29073107]
[1773151933757,11.29073107,85.49,85.461,2.64931815]
[1773151934576,11.69508572,85.506,85.462,11.70110692]
[1773151934772,11.29073107,85.49,85.462,11.70110692]
[1773151934979,11.69508572,85.506,85.461,2.64931815]
[1773151935271,11.29073107,85.49,85.452,2.64931815]
[1773151935659,11.29073107,85.49,85.451,11.70261319]
[1773151935660,0.02077757,85.512,85.461,2.64931815]
[1773151935865,0.02077757,85.512,85.471,2.64931815]
[1773151935866,11.29073107,85.51,85.471,2.64931815]
[1773151936172,0.02077757,85.512,85.471,2.64931815]
[1773151936371,11.29073107,85.51,85.471,2.64931815]
[1773151936679,1e-08,85.52,85.501,2.64931815]
[1773151936874,46.72716549,85.604,85.511,2.64931815]
[1773151936875,11.29073107,85.56,85.511,2.64931815]
[1773151937077,11.29073107,85.54,85.473,2.64931815]
[1773151937284,40.90266334,85.569,85.472,239.84462745]
[1773151937285,11.29073107,85.55,85.51,11.29073107]
[1773151937485,11.29073107,85.55,85.472,239.84462745]
[1773151937486,11.29073107,85.56,85.521,2.64931815]
[1773151937655,11.29073107,85.55,85.521,2.64931815]
[1773151937970,0.03665518,85.565,85.521,2.64931815]
[1773151938371,11.29073107,85.54,85.51,2.64931815]
[1773151938573,11.29073107,85.54,85.511,11.69440188]
[1773151938777,11.29073107,85.55,85.511,40.9304066]
[1773151938981,11.29073107,85.55,85.511,11.69440188]
[1773151939472,11.29073107,85.55,85.511,14.34372003]
[1773151939661,11.29073107,85.55,85.512,2.64931815]
[1773151940084,0.0361083,85.549,85.511,11.69440188]
[1773151940586,0.03569181,85.561,85.521,11.69303445]
[1773151940774,0.03569181,85.559,85.521,11.69303445]
[1773151940980,11.29073107,85.55,85.521,11.69303445]
[1773151941288,11.29073107,85.55,85.516,11.69366422]
[1773151941289,0.03526213,85.549,85.516,11.69366422]
[1773151941487,11.29073107,85.54,85.516,11.69366422]
[1773151941778,11.29073107,85.54,85.502,11.69563285]
[1773151941982,0.03526213,85.549,85.51,11.29073107]
[1773151942694,11.29073107,85.55,85.52,11.29073107]
[1773151942879,11.29073107,85.56,85.531,2.64931815]
[1773151943064,11.68746613,85.562,85.509,2.64931815]
[1773151943065,11.29073107,85.55,85.509,2.64931815]
[1773151943264,0.03481947,85.559,85.502,11.69563285]
[1773151943485,11.29073107,85.54,85.51,11.29073107]
[1773151943781,0.03436401,85.546,85.51,11.29073107]
[1773151943987,11.29073107,85.54,85.502,14.344951]
[1773151944191,0.03436401,85.539,85.502,11.69563285]
[1773151944564,11.29073107,85.53,85.492,11.69700088]
[1773151944770,11.7258367,85.529,85.492,11.69700088]
[1773151944985,0.03389596,85.528,85.488,11.69752813]
[1773151945187,11.29073107,85.52,85.488,11.69752813]
[1773151945483,11.29073107,85.52,85.482,11.69827138]
[1773151945670,0.03389596,85.528,85.49,11.29073107]
[1773151946072,11.29073107,85.52,85.483,2.64931815]
[1773151946471,11.29073107,85.52,85.482,11.69827138]
[1773151946472,11.69194074,85.529,85.491,2.64931815]
[1773151946670,11.29073107,85.52,85.483,2.64931815]
[1773151946991,11.29073107,85.52,85.471,29.24949878]
[1773151946992,11.29073107,85.51,85.484,11.69809555]
[1773151947367,0.03292282,85.518,85.484,11.69809555]
[1773151947768,11.29073107,85.51,85.473,11.69960104]
[1773151948279,46.7583922,85.547,85.473,11.69960104]
[1773151948280,11.29073107,85.52,85.491,2.64931815]
[1773151948484,11.69330791,85.519,85.48,13.94004922]
[1773151948789,11.69467541,85.509,85.481,11.6985061]
[1773151949090,11.69467541,85.509,85.47,11.29073107]
[1773151949270,40.93136394,85.509,85.471,11.69987481]
[1773151949768,0.03137334,85.508,85.471,11.69987481]
[1773151950277,11.29073107,85.5,85.466,14.34977091]
[1773151950477,11.29073107,85.5,85.453,29.25568167]
[1773151950478,11.29073107,85.49,85.457,11.70179154]
[1773151951170,11.69513641,85.506,85.471,2.64931815]
[1773151951774,11.29073107,85.52,85.48,11.29073107]
[1773151951967,22.98392887,85.52,85.491,2.64931815]
[1773151952181,22.98392887,85.52,85.457,87.76343657]
[1773151952182,11.29073107,85.51,85.478,2.64931815]
[1773151952581,40.92612577,85.52,85.457,40.9562704]
[1773151952582,22.98392887,85.52,85.481,2.64931815]
[1773151952775,22.98392887,85.52,85.457,146.27239429]
[1773151952776,22.98392887,85.52,85.491,2.64931815]
[1773151953082,22.98392887,85.52,85.492,11.69700088]
[1773151953889,11.29073107,85.53,85.493,2.64931815]
[1773151954087,11.69194074,85.529,85.493,2.64931815]
[1773151954301,11.29073107,85.54,85.501,2.64931815]
[1773151954467,11.29073107,85.52,85.492,11.69700088]
[1773151954866,0.02994168,85.531,85.493,2.64931815]
[1773151955175,11.69125934,85.534,85.501,2.64931815]
[1773151955375,11.69065798,85.539,85.501,2.64931815]
[1773151955571,11.29073107,85.53,85.501,2.64931815]
[1773151955871,11.29073107,85.52,85.494,11.69672725]
[1773151956271,0.02933135,85.529,85.494,11.69672725]
[1773151956602,11.29073107,85.52,85.494,11.69672725]
[1773151957474,22.98403841,85.52,85.494,11.69672725]
[1773151958098,11.29073107,85.52,85.494,11.69672725]
[1773151958397,11.29073107,85.52,85.495,2.64931815]
[1773151960513,11.69330791,85.519,85.482,14.34768739]
[1773151960798,11.29073107,85.49,85.471,14.34914348]
[1773151961169,11.69330791,85.519,85.472,2.64931815]
[1773151961370,11.29073107,85.49,85.472,2.64931815]
[1773151962181,11.29073107,85.5,85.472,2.64931815]
[1773151962586,11.29073107,85.5,85.473,11.69960104]
[1773151963095,11.69604322,85.499,85.473,11.69960104]
[1773151963679,11.29073107,85.49,85.472,2.64931815]
[1773151963894,11.29073107,85.49,85.452,2.64931815]
[1773151964497,11.69604322,85.499,85.452,2.64931815]
[1773151964796,11.29073107,85.5,85.461,2.64931815]
[1773151966483,11.29073107,85.5,85.444,2.64931815]
[1773151966484,11.29073107,85.47,85.444,2.64931815]
[1773151966687,11.6985061,85.481,85.444,43.6118199]
[1773151966882,11.29073107,85.48,85.444,40.96250175]
[1773151967177,11.29073107,85.49,85.451,2.64931815]
[1773151968696,22.9866586,85.5,85.462,2.64931815]
[1773151968999,11.29073107,85.49,85.462,2.64931815]
[1773151969391,11.29073107,85.51,85.471,2.64931815]
[1773151969587,11.29073107,85.5,85.471,2.64931815]
[1773151969794,11.29073107,85.49,85.462,2.64931815]
[1773151970400,11.29073107,85.47,85.44,2.64931815]
[1773151970617,11.29073107,85.45,85.431,11.70535285]
[1773151970910,11.29073107,85.45,85.431,14.354671]
[1773151971798,11.27759355,85.45,85.431,14.354671]
[1773151972202,11.27759355,85.45,85.432,2.64931815]
[1773151972720,11.27759355,85.45,85.433,11.70507883]
[1773151973012,11.27759355,85.46,85.434,2.64931815]
[1773151973214,11.27759355,85.45,85.434,2.64931815]
[1773151974202,11.27759355,85.46,85.435,11.70480482]
[1773151974403,11.69741136,85.489,85.438,2.64931815]
[1773151974705,29.23926297,85.502,85.455,2.64931815]
[1773151974706,11.27759355,85.48,85.455,2.64931815]
[1773151975202,0.04386368,85.511,85.455,2.64931815]
[1773151975509,11.73826556,85.511,85.462,2.64931815]
[1773151975703,11.27759355,85.5,85.462,2.64931815]
[1773151976399,11.27759355,85.49,85.464,2.64931815]
[1773151977178,11.27759355,85.5,85.464,2.64931815]
[1773151977510,11.27759355,85.49,85.464,2.64931815]
[1773151978509,11.27759355,85.49,85.465,14.35001434]
[1773151978706,11.27759355,85.49,85.465,40.95243666]
[1773151978914,11.27759355,85.5,85.466,2.64931815]
[1773151979702,11.27759355,85.5,85.471,2.64931815]
[1773151980391,0.0815052,85.526,85.473,2.64931815]
[1773151980392,11.27759355,85.51,85.473,2.64931815]
[1773151980580,11.27759355,85.5,85.473,2.64931815]
[1773151980783,11.27759355,85.49,85.473,2.64931815]
[1773151980985,0.09432084,85.508,85.473,2.64931815]
[1773151981209,0.09432084,85.519,85.473,2.64931815]
[1773151981504,11.27759355,85.49,85.473,2.64931815]
[1773151981705,11.27759355,85.48,85.452,2.64931815]
[1773151981909,2.54198092,85.459,85.431,11.70535285]
[1773151982206,2.54198092,85.449,85.414,29.26910784]
[1773151982389,11.27759355,85.44,85.401,40.98312666]
[1773151982710,11.27759355,85.43,85.401,40.98312666]
[1773151983101,2.54198092,85.439,85.401,40.98312666]
[1773151983102,11.27759355,85.42,85.401,40.98312666]
[1773151983411,46.80018806,85.47,85.401,40.98312666]
[1773151983412,11.27759355,85.43,85.401,40.98312666]
[1773151983809,11.27759355,85.43,85.402,2.56057594]
[1773151984196,11.27759355,85.42,85.402,2.56057594]
[1773151984609,11.27759355,85.43,85.404,2.56057594]
[1773151984994,11.27759355,85.43,85.403,40.98216689]
[1773151984995,11.27759355,85.42,85.403,11.70919054]
[1773151985196,11.27759355,85.41,85.393,11.71056175]
[1773151985398,11.27759355,85.41,85.39,0.1]
[1773151985713,11.27759355,85.41,85.37,11.27759355]
[1773151985714,11.27759355,85.4,85.383,11.71190653]
[1773151986011,11.27759355,85.39,85.383,11.71190653]
[1773151986196,11.27759355,85.4,85.383,11.71190653]
[1773151986517,11.27759355,85.4,85.371,11.71357955]
[1773151986695,11.27759355,85.4,85.372,2.56057594]
[1773151987297,11.27759355,85.39,85.372,2.56057594]
[1773151987498,11.27759355,85.4,85.372,2.56057594]
[1773151988014,2.55406452,85.424,85.372,2.56057594]
[1773151988194,11.27759355,85.41,85.372,2.56057594]
[1773151988954,11.27759355,85.44,85.373,11.71330514]
[1773151988955,11.27759355,85.39,85.373,11.71330514]
[1773151989099,11.27759355,85.39,85.368,11.71386181]
[1773151989297,11.27759355,85.38,85.368,11.71386181]
[1773151989713,11.27759355,85.38,85.353,2.56057594]
[1773151989897,11.27759355,85.38,85.355,2.56057594]
[1773151990098,2.55406452,85.395,85.355,2.56057594]
[1773151990399,11.27759355,85.39,85.361,2.56057594]
[1773151991199,11.27759355,85.39,85.363,2.56057594]
[1773151991406,11.27759355,85.38,85.363,2.56057594]
[1773151991617,11.27759355,85.39,85.363,2.56057594]
[1773151993114,11.27759355,85.39,85.334,93.74916756]
[1773151993115,2.55406452,85.404,85.37,2.56057594]
[1773151993314,2.55406452,85.404,85.364,41.00089029]
[1773151993315,11.27759355,85.42,85.381,2.56057594]
[1773151993496,11.70425683,85.439,85.381,2.56057594]
[1773151993497,11.27759355,85.41,85.381,2.56057594]
[1773151993824,11.27759355,85.42,85.381,2.56057594]
[1773151994002,11.27759355,85.41,85.381,2.56057594]
[1773151994203,11.27759355,85.4,85.381,2.56057594]
[1773151994506,11.27759355,85.41,85.381,2.56057594]
[1773151995022,11.70425683,85.439,85.381,2.56057594]
[1773151995230,11.27759355,85.43,85.394,2.56057594]
[1773151995527,2.55406452,85.444,85.394,2.56057594]
[1773151995698,11.27759355,85.44,85.401,2.56057594]
[1773151995903,11.27759355,85.43,85.401,2.56057594]
[1773151996435,11.27759355,85.44,85.401,2.56057594]
[1773151996605,11.27759355,85.44,85.393,87.82921315]
[1773151996606,11.27759355,85.44,85.411,2.56057594]
[1773151997007,11.70028548,85.468,85.411,2.56057594]
[1773151997008,11.27759355,85.45,85.411,2.56057594]
[1773151997217,11.27759355,85.45,85.413,2.56057594]
[1773151997406,11.27759355,85.45,85.421,2.56057594]
[1773151997609,11.27759355,85.5,85.412,40.97784853]
[1773151997610,2.55406452,85.481,85.431,2.56057594]
[1773151997909,46.76069201,85.542,85.43,11.27759355]
[1773151997910,11.27759355,85.46,85.44,2.56057594]
[1773151998132,11.27759355,85.45,85.416,2.56057594]
[1773151998300,11.27759355,85.5,85.416,2.56057594]
[1773151998301,11.27759355,85.44,85.416,2.56057594]
[1773151998502,11.27759355,85.44,85.412,40.97784853]
[1773151998503,10.03970774,85.43,85.412,11.70795672]
[1773151998816,3.69383402,85.479,85.39,11.27759355]
[1773151998817,11.27759355,85.42,85.39,29.27715066]
[1773151999024,11.27759355,85.41,85.39,29.27715066]
[1773151999210,11.27759355,85.41,85.391,11.71083603]
[1773151999699,11.27759355,85.41,85.38,11.27759355]
[1773151999700,11.27759355,85.4,85.38,11.71234481]
[1773151999908,2.55406452,85.41,85.368,29.28480197]
[1773151999909,11.27759355,85.39,85.369,11.71385397]
[1773152000105,11.27759355,85.4,85.369,40.9984889]
[1773152000305,11.27759355,85.4,85.369,43.55906484]
[1773152000927,11.27759355,85.4,85.37,2.56057594]
[1773152001106,2.55406452,85.41,85.381,2.56057594]
[1773152001107,11.27759355,85.41,85.381,2.56057594]
[1773152001308,11.27759355,85.4,85.383,2.56057594]
[1773152001506,1.23788581,85.399,85.383,2.56057594]
[1773152002725,11.27759355,85.41,85.383,2.56057594]
[1773152003139,2.55406452,85.489,85.4,11.27759355]
[1773152003422,11.27759355,85.47,85.403,2.56057594]
[1773152003724,11.27759355,85.47,85.402,134.65726797]
[1773152003725,11.27759355,85.47,85.431,2.56057594]
[1773152004306,11.27759355,85.47,85.44,11.27759355]
[1773152004615,11.27759355,85.47,85.431,2.56057594]
[1773152004616,11.27759355,85.46,85.43,11.27759355]
[1773152004921,11.69754819,85.488,85.402,240.04121682]
[1773152004922,11.27759355,85.48,85.441,2.56057594]
[1773152005115,11.27759355,85.47,85.441,2.56057594]
[1773152005422,11.27759355,85.47,85.442,11.70384588]
[1773152005816,31.80067191,85.48,85.442,11.70384588]
[1773152006015,11.27759355,85.47,85.443,2.56057594]
[1773152006338,11.27759355,85.47,85.442,11.70384588]
[1773152006632,11.27759355,85.46,85.433,11.70507883]
[1773152008429,11.27759355,85.47,85.434,2.56057594]
[1773152009013,2.55406452,85.48,85.44,11.27759355]
[1773152009225,2.55406452,85.48,85.433,40.96777591]
[1773152009226,11.27759355,85.46,85.433,40.96777591]
[1773152009419,11.27759355,85.46,85.303,11.27759355]
[1773152009420,11.27759355,85.45,85.42,11.27759355]
[1773152009712,11.27759355,85.45,85.421,2.56057594]
[1773152009918,11.27759355,85.46,85.421,2.56057594]
[1773152010131,2.55406452,85.469,85.421,2.56057594]
[1773152010330,11.27759355,85.45,85.421,2.56057594]
[1773152011034,11.27759355,85.45,85.387,193.23784648]
[1773152011035,2.55406452,85.439,85.397,2.56057594]
[1773152011212,2.55406452,85.429,85.387,11.71138463]
[1773152011411,11.27759355,85.41,85.387,11.71138463]
[1773152011827,11.27759355,85.4,85.387,11.71138463]
[1773152012035,11.27759355,85.4,85.376,29.28193406]
[1773152012036,11.27759355,85.4,85.377,14.2733323]
[1773152012235,11.27759355,85.4,85.378,2.56057594]
[1773152012533,2.55406452,85.417,85.378,2.56057594]
[1773152012534,11.27759355,85.41,85.378,2.56057594]
[1773152012737,11.27759355,85.41,85.381,2.56057594]
[1773152013523,11.27759355,85.41,85.382,14.27264639]
[1773152013721,11.27759355,85.42,85.383,2.5889625]
[1773152014031,11.27759355,85.41,85.383,2.5889625]
[1773152014426,2.57685963,85.427,85.383,2.5889625]
[1773152014632,11.27759355,85.42,85.383,2.5889625]
[1773152015444,2.57685963,85.443,85.384,40.99128642]
[1773152015649,29.25989072,85.571,85.384,40.99128642]
[1773152015650,11.27759355,85.42,85.391,2.5889625]
[1773152015851,11.27759355,85.41,85.384,40.99128642]
[1773152016231,11.27759355,85.41,85.384,11.71179612]